bitfinex/quotes_SOLUSD_20241028
["timestamp","ask_amount","ask_price","bid_price","bid_amount"]
[1730107891981,54.153354,176.97,176.96,11.06744219]
[1730107893398,54.153354,176.97,176.85,44.26976876]
[1730107893399,0.37647,176.94,176.89,5.6531]
[1730107893604,54.153354,176.94,176.91,11.06744219]
[1730107894908,54.153354,176.94,176.92,11.06744219]
[1730107895198,24.153354,176.94,176.92,11.06744219]
[1730107896699,24.153354,176.94,176.93,11.06744219]
[1730107896900,24.153354,176.94,176.92,11.06744219]
[1730107899407,0.37647,176.94,176.93,11.06744219]
[1730107902303,0.37647,176.94,176.92,11.06744219]
[1730107905115,30.37647,176.94,176.92,11.06744219]
[1730107909088,30.37647,176.94,176.9,11.06744219]
[1730107909089,36.02807,176.94,176.9,11.06744219]
[1730107909512,0.37647,176.92,176.89,11.06744219]
[1730107911410,0.37647,176.92,176.87,14.1346]
[1730107911603,0.37647,176.9,176.86,5.6539]
[1730107911911,0.37647,176.9,176.87,11.06744219]
[1730107913018,0.12549,176.88,176.86,11.06744219]
[1730107913206,0.37647,176.88,176.85,11.06744219]
[1730107914218,0.37647,176.88,176.86,11.06744219]
[1730107915711,6.02997,176.88,176.86,11.06744219]
[1730107915915,6.02997,176.88,176.85,11.06744219]
[1730107916112,0.37647,176.86,176.84,11.06744219]
[1730107919201,30.37647,176.86,176.84,11.06744219]
[1730107919404,30.25098,176.86,176.84,11.06744219]
[1730107919616,30.25098,176.86,176.8,0.5903972]
[1730107919823,30.25098,176.86,176.85,11.06744219]
[1730107920116,30.25098,176.86,176.84,11.06744219]
[1730107920499,0.25098,176.86,176.84,11.06744219]
[1730107921325,0.25098,176.86,176.83,11.06744219]
[1730107922695,0.12549,176.85,176.83,11.06744219]
[1730107924004,20.37647,176.83,176.8,0.5903972]
[1730107924326,0.37647,176.81,176.8,0.5903972]
[1730107924501,24.153354,176.81,176.8,0.5903972]
[1730107924702,44.153354,176.81,176.8,0.5903972]
[1730107925134,49.809054,176.81,176.8,0.5903972]
[1730107925422,44.153354,176.81,176.8,0.5903972]
[1730107926214,0.25098,176.81,176.8,0.5903972]
[1730107926720,30.25098,176.81,176.8,0.5903972]
[1730107927425,0.12549,176.83,176.8,17.31393939]
[1730107927723,0.12549,176.83,176.82,11.06744219]
[1730107927926,30.37647,176.83,176.82,11.06744219]
[1730107929733,0.12549,176.81,176.8,0.5903972]
[1730107929924,55.22079619,176.81,176.8,0.5903972]
[1730107930231,60.092154,176.81,176.8,0.5903972]
[1730107930630,71.15959619,176.81,176.8,0.5903972]
[1730107930808,101.15959619,176.81,176.8,0.5903972]
[1730107931014,106.91529619,176.81,176.8,0.5903972]
[1730107932224,70.37647,176.73,176.72,11.06744219]
[1730107932409,94.153354,176.73,176.72,11.06744219]
[1730107933025,0.12549,176.71,176.69,19.8083]
[1730107933231,0.12549,176.71,176.7,11.06744219]
[1730107933615,0.12549,176.71,176.69,19.8083]
[1730107933819,0.12549,176.71,176.7,11.06744219]
[1730107935532,0.12549,176.71,176.7,16.72674219]
[1730107935830,0.12549,176.72,176.7,30.87494219]
[1730107936033,0.25098,176.72,176.71,11.06744219]
[1730107936330,0.25098,176.73,176.7,19.8075]
[1730107936543,0.12549,176.72,176.7,30.87494219]
[1730107937406,0.12549,176.72,176.71,11.06744219]
[1730107937607,0.12549,176.72,176.71,16.72634219]
[1730107938415,0.12549,176.72,176.7,11.06744219]
[1730107938624,0.37647,176.7,176.69,16.72694219]
[1730107939326,0.37647,176.7,176.68,11.06744219]
[1730107939327,24.153354,176.7,176.68,11.06744219]
[1730107939732,24.153354,176.7,176.67,19.8105]
[1730107940028,24.153354,176.68,176.64,14.1529]
[1730107940229,0.37647,176.65,176.64,14.1529]
[1730107940611,0.37647,176.65,176.64,25.22034219]
[1730107940816,0.37647,176.65,176.62,6.2519972]
[1730107941016,24.153354,176.65,176.63,11.06744219]
[1730107941221,0.37647,176.63,176.62,0.5903972]
[1730107941430,24.153354,176.63,176.62,0.5903972]
[1730107941636,24.153354,176.63,176.62,6.2521972]
[1730107941830,0.37647,176.63,176.62,17.31963939]
[1730107942837,76.4368,176.68,176.62,17.31963939]
[1730107943131,20.0,176.67,176.64,11.06744219]
[1730107944216,0.37647,176.66,176.64,11.06744219]
[1730107944418,0.37647,176.64,176.62,14.7449972]
[1730107944724,0.37647,176.64,176.63,11.06744219]
[1730107944925,0.37647,176.64,176.63,16.72894219]
[1730107946424,0.37647,176.64,176.63,11.06744219]
[1730107947236,0.12549,176.64,176.63,11.06744219]
[1730107947430,0.12549,176.64,176.63,16.72894219]
[1730107947655,0.12549,176.64,176.63,5.6615]
[1730107947814,0.12549,176.64,176.63,16.72894219]
[1730107949323,0.12549,176.64,176.63,11.06744219]
[1730107949723,0.12549,176.64,176.63,16.72894219]
[1730107950119,0.12549,176.64,176.63,11.06744219]
[1730107950334,0.12549,176.64,176.63,16.72894219]
[1730107950636,0.37647,176.66,176.63,30.88274219]
[1730107950839,70.0,176.67,176.65,11.06744219]
[1730107951018,0.25098,176.66,176.64,11.06744219]
[1730107952121,0.25098,176.64,176.63,14.1538]
[1730107952337,0.37647,176.64,176.63,14.1538]
[1730107954121,0.37647,176.63,176.62,0.5903972]
[1730107954540,0.37647,176.63,176.62,11.65783939]
[1730107955045,0.37647,176.63,176.62,0.5903972]
[1730107955843,0.37647,176.63,176.62,11.65783939]
[1730107956442,20.0,176.66,176.62,31.47423939]
[1730107956643,20.0,176.66,176.63,11.06744219]
[1730107956853,0.12549,176.63,176.62,0.5903972]
[1730107957341,20.12549,176.63,176.62,0.5903972]
[1730107957848,44.153354,176.63,176.62,0.5903972]
[1730107958849,60.88229619,176.63,176.62,0.5903972]
[1730107959344,76.32489619,176.63,176.62,0.5903972]
[1730107959642,76.42489619,176.63,176.62,0.5903972]
[1730107960236,76.42489619,176.63,176.52,5.6647]
[1730107960237,0.25098,176.54,176.52,5.6647]
[1730107961042,24.027864,176.54,176.5,19.8293]
[1730107961748,24.027864,176.54,176.51,11.06744219]
[1730107962246,0.12549,176.56,176.53,11.06744219]
[1730107962453,0.25098,176.56,176.53,11.06744219]
[1730107962755,0.12549,176.55,176.53,16.73194219]
[1730107962935,0.25098,176.55,176.5,14.1636]
[1730107963248,0.12549,176.54,176.51,11.06744219]
[1730107963446,0.25098,176.54,176.51,11.06744219]
[1730107963948,0.12549,176.53,176.5,19.8292]
[1730107964125,0.12549,176.53,176.51,11.06744219]
[1730107964446,70.12549,176.53,176.5,19.8292]
[1730107964651,0.12549,176.51,176.5,14.1636]
[1730107965339,0.12549,176.51,176.48,5.6661]
[1730107965546,0.12549,176.51,176.48,16.73354219]
[1730107965924,0.12549,176.49,176.48,16.73354219]
[1730107966953,23.776884,176.52,176.48,16.73354219]
[1730107967151,0.25098,176.51,176.49,11.06744219]
[1730107967333,0.12549,176.5,176.49,11.06744219]
[1730107967525,20.0,176.54,176.49,11.06744219]
[1730107967841,0.12549,176.53,176.51,11.06744219]
[1730107968646,20.0,176.54,176.51,11.06744219]
[1730107968647,30.12549,176.52,176.51,11.06744219]
[1730107968853,0.12549,176.52,176.51,16.73284219]
[1730107970241,0.12549,176.52,176.51,5.6654]
[1730107970442,0.12549,176.52,176.51,16.73284219]
[1730107970640,0.12549,176.52,176.51,5.6654]
[1730107970844,0.12549,176.52,176.51,16.73284219]
[1730107971421,0.12549,176.52,176.51,5.6654]
[1730107973650,0.12549,176.51,176.45,20.4259972]
[1730107973857,0.12549,176.51,176.5,11.06744219]
[1730107974953,70.12549,176.52,176.49,14.1647]
[1730107975137,0.25098,176.51,176.49,25.23214219]
[1730107975335,0.25098,176.51,176.49,24.73214219]
[1730107975537,0.25098,176.51,176.49,13.6647]
[1730107976039,0.25098,176.51,176.49,24.73214219]
[1730107977750,0.25098,176.51,176.49,13.6647]
[1730107978627,0.25098,176.51,176.49,19.3307]
[1730107980453,0.25098,176.51,176.49,11.06744219]
[1730107980663,0.25098,176.51,176.5,11.06744219]
[1730107981551,20.0,176.54,176.5,11.06744219]
[1730107981761,20.0,176.54,176.51,11.06744219]
[1730107982363,0.12549,176.53,176.51,11.06744219]
[1730107982857,0.25098,176.53,176.5,11.06744219]
[1730107984145,0.25098,176.53,176.5,16.73284219]
[1730107984958,0.12549,176.51,176.5,16.73284219]
[1730107986067,0.12549,176.51,176.49,11.06744219]
[1730107986562,20.0,176.54,176.5,11.06744219]
[1730107986858,0.37647,176.53,176.5,11.06744219]
[1730107987042,0.12549,176.52,176.5,11.06744219]
[1730107987237,70.0,176.57,176.51,11.06744219]
[1730107987471,70.0,176.57,176.54,11.06744219]
[1730107987766,30.0,176.55,176.53,11.06744219]
[1730107988061,30.0,176.55,176.53,16.73204219]
[1730107988062,0.12549,176.54,176.53,16.73204219]
[1730107988765,0.12549,176.55,176.53,16.73204219]
[1730107988949,0.12549,176.55,176.54,11.06744219]
[1730107990952,6.6357,176.58,176.54,30.89284219]
[1730107990953,20.0,176.58,176.54,30.89284219]
[1730107991155,20.0,176.58,176.55,11.06744219]
[1730107991554,0.12549,176.57,176.54,19.8254]
[1730107991864,0.12549,176.57,176.54,30.89284219]
[1730107992071,0.12549,176.57,176.56,11.06744219]
[1730107992357,20.12549,176.59,176.56,11.06744219]
[1730107992561,0.12549,176.57,176.55,5.6641]
[1730107992768,76.3061,176.63,176.55,19.8243]
[1730107992946,0.12549,176.62,176.55,19.8243]
[1730107993142,75.6609,176.65,176.61,11.06744219]
[1730107993348,70.0,176.65,176.62,11.06744219]
[1730107994260,23.67040871,176.66,176.63,11.06744219]
[1730107994461,81.7271,176.67,176.64,11.06744219]
[1730107994462,70.0,176.67,176.64,11.06744219]
[1730107994760,70.0,176.67,176.62,5.6617]
[1730107994761,70.0,176.67,176.66,11.06744219]
[1730107995142,70.12549,176.67,176.66,11.06744219]
[1730107995344,30.0,176.67,176.66,11.06744219]
[1730107996370,30.0,176.67,176.66,16.72794219]
[1730107996571,92.4495,176.71,176.66,30.87934219]
[1730107996865,86.3021,176.71,176.69,11.06744219]
[1730107997044,30.0,176.7,176.69,11.06744219]
[1730107997241,75.6585,176.73,176.69,11.06744219]
[1730107997469,0.12549,176.72,176.69,11.06744219]
[1730107997674,75.6585,176.73,176.69,11.06744219]
[1730107998044,0.12549,176.72,176.69,11.06744219]
[1730107998246,20.0,176.72,176.69,11.06744219]
[1730107998469,20.0,176.72,176.71,11.06744219]
[1730107998665,20.0,176.72,176.7,11.06744219]
[1730107999449,0.12549,176.71,176.7,11.06744219]
[1730108001772,0.37647,176.71,176.69,11.06744219]
[1730108001957,30.37647,176.71,176.69,11.06744219]
[1730108002654,24.153354,176.69,176.62,19.8164]
[1730108002978,24.153354,176.69,176.66,11.06744219]
[1730108003150,0.12549,176.67,176.66,11.06744219]
[1730108004660,30.0,176.68,176.66,11.06744219]
[1730108004661,0.37647,176.68,176.66,11.06744219]
[1730108004861,0.12549,176.68,176.66,11.06744219]
[1730108007699,30.12549,176.68,176.66,11.06744219]
[1730108010361,90.25098,176.67,176.59,19.8198]
[1730108010590,0.12549,176.66,176.63,11.06744219]
[1730108012076,30.12549,176.66,176.65,11.06744219]
[1730108012271,30.37647,176.66,176.65,11.06744219]
[1730108012971,30.37647,176.66,176.64,11.06744219]
[1730108013367,30.37647,176.66,176.63,11.06744219]
[1730108013566,0.37647,176.66,176.63,11.06744219]
[1730108015202,0.37647,176.66,176.63,16.72894219]
[1730108015665,0.37647,176.66,176.64,11.06744219]
[1730108017570,0.12549,176.66,176.65,11.06744219]
[1730108017778,0.25098,176.67,176.65,11.06744219]
[1730108017963,0.12549,176.66,176.65,11.06744219]
[1730108018657,0.12549,176.66,176.64,11.06744219]
[1730108021077,0.12549,176.66,176.63,11.06744219]
[1730108022078,0.12549,176.66,176.63,16.72884219]
[1730108024471,0.12549,176.66,176.64,11.06744219]
[1730108024788,0.12549,176.66,176.65,11.06744219]
[1730108025164,0.12549,176.66,176.64,11.06744219]
[1730108028383,5.91168,176.66,176.62,25.22184219]
[1730108028577,35.91168,176.66,176.62,30.88364219]
[1730108030880,5.91168,176.66,176.62,30.88364219]
[1730108031088,0.25098,176.66,176.62,30.88364219]
[1730108032476,0.25098,176.66,176.63,11.06744219]
[1730108032996,20.0,176.68,176.64,11.06744219]
[1730108033207,81.44391219,176.67,176.62,11.06744219]
[1730108034498,70.37647,176.67,176.62,11.06744219]
[1730108034682,76.03687,176.67,176.62,16.72914219]
[1730108035194,0.37647,176.65,176.62,11.06744219]
[1730108035378,105.22079619,176.65,176.6,16.72964219]
[1730108035578,0.12549,176.63,176.6,16.72964219]
[1730108036593,0.12549,176.63,176.59,11.06744219]
[1730108036594,6.03807,176.63,176.59,11.06744219]
[1730108037780,6.03807,176.63,176.59,16.73014219]
[1730108038586,0.37647,176.63,176.6,11.06744219]
[1730108038783,0.37647,176.63,176.61,11.06744219]
[1730108039499,20.0,176.66,176.62,11.06744219]
[1730108039683,20.0,176.66,176.64,11.06744219]
[1730108039882,0.12549,176.65,176.64,11.06744219]
[1730108040780,0.25098,176.68,176.64,16.72864219]
[1730108040985,4.24007513,176.67,176.66,11.06744219]
[1730108041185,4.36556513,176.67,176.66,11.06744219]
[1730108041589,34.36556513,176.67,176.66,11.06744219]
[1730108042281,30.12549,176.67,176.66,11.06744219]
[1730108042485,0.12549,176.66,176.65,11.06744219]
[1730108042705,0.12549,176.66,176.64,25.22044219]
[1730108043006,0.37647,176.66,176.6,19.8184]
[1730108043201,0.37647,176.66,176.63,11.06744219]
[1730108043400,0.37647,176.66,176.64,11.06744219]
[1730108045191,20.0,176.68,176.65,11.06744219]
[1730108045394,0.25098,176.69,176.67,11.06744219]
[1730108045596,4.24121992,176.68,176.67,11.06744219]
[1730108046305,0.12549,176.67,176.63,14.1538]
[1730108046506,30.12549,176.67,176.63,25.22124219]
[1730108046713,30.12549,176.67,176.64,11.06744219]
[1730108046888,0.25098,176.66,176.64,11.06744219]
[1730108047201,30.12549,176.67,176.65,11.06744219]
[1730108049491,30.37647,176.67,176.66,11.06744219]
[1730108049686,25.6595,176.7,176.66,16.72794219]
[1730108049890,4.24348119,176.69,176.67,11.06744219]
[1730108050110,54.36897119,176.68,176.67,11.06744219]
[1730108050308,54.36918682,176.68,176.67,11.06744219]
[1730108050893,24.36918682,176.68,176.67,11.06744219]
[1730108052208,24.36918682,176.68,176.65,5.6608]
[1730108052209,0.12549,176.67,176.66,11.06744219]
[1730108052510,4.36918682,176.67,176.66,11.06744219]
[1730108052690,4.36918682,176.67,176.64,25.22044219]
[1730108052890,0.12549,176.67,176.66,11.06744219]
[1730108053091,4.36987119,176.67,176.66,11.06744219]
[1730108053611,0.25098,176.66,176.59,15.3636]
[1730108053812,0.12549,176.65,176.61,14.1553]
[1730108054508,0.12549,176.65,176.64,11.06744219]
[1730108054888,5.78539,176.68,176.64,11.06744219]
[1730108055084,24.24509982,176.67,176.65,11.06744219]
[1730108055291,0.12549,176.66,176.65,11.06744219]
[1730108057703,0.25098,176.67,176.65,11.06744219]
[1730108058005,0.25098,176.67,176.66,11.06744219]
[1730108058206,4.62173374,176.67,176.66,11.06744219]
[1730108061899,4.37075374,176.67,176.66,11.06744219]
[1730108062097,0.12549,176.67,176.66,11.06744219]
[1730108062318,4.37069458,176.67,176.66,11.06744219]
[1730108064315,4.37069458,176.67,176.65,5.6606]
[1730108064610,20.12549,176.68,176.66,11.06744219]
[1730108064804,4.37029901,176.67,176.66,11.06744219]
[1730108065822,0.12549,176.66,176.59,35.2834]
[1730108065990,0.12549,176.66,176.65,11.06744219]
[1730108066495,0.12549,176.67,176.59,35.1834]
[1730108066691,0.12549,176.67,176.66,11.06744219]
[1730108067319,10.03024899,176.67,176.65,11.06744219]
[1730108067519,5.78569,176.67,176.65,11.06744219]
[1730108068812,0.12549,176.67,176.66,11.06744219]
[1730108069012,4.62105649,176.67,176.66,11.06744219]
[1730108069917,4.24458649,176.67,176.66,16.72794219]
[1730108070302,20.0,176.71,176.66,30.87934219]
[1730108070502,0.12549,176.69,176.66,19.8119]
[1730108070716,4.24421727,176.68,176.66,19.8119]
[1730108070903,0.12549,176.69,176.66,19.8119]
[1730108071105,25.659,176.71,176.68,11.06744219]
[1730108071421,30.0,176.69,176.66,19.8119]
[1730108071622,30.12549,176.69,176.68,11.06744219]
[1730108071919,34.36946439,176.69,176.68,11.06744219]
[1730108072518,4.36946439,176.69,176.68,11.06744219]
[1730108077125,0.12549,176.69,176.68,11.06744219]
[1730108078100,0.12549,176.68,176.66,19.8119]
[1730108078300,0.12549,176.68,176.67,11.06744219]
[1730108079224,0.12549,176.69,176.67,11.06744219]
[1730108079428,0.12549,176.69,176.68,11.06744219]
[1730108079721,0.12549,176.69,176.62,19.8164]
[1730108079926,0.12549,176.69,176.68,11.06744219]
[1730108080627,20.37647,176.7,176.68,11.06744219]
[1730108083634,26.03577,176.7,176.68,11.06744219]
[1730108084639,20.12549,176.7,176.69,11.06744219]
[1730108084815,54.3682501,176.7,176.69,11.06744219]
[1730108085134,24.3682501,176.7,176.69,11.06744219]
[1730108085814,4.3682501,176.7,176.69,16.72704219]
[1730108086206,4.3682501,176.7,176.69,11.06744219]
[1730108086409,0.12549,176.72,176.69,11.06744219]
[1730108086710,0.12549,176.7,176.69,11.06744219]
[1730108086918,4.36863919,176.7,176.62,19.8164]
[1730108087137,4.36863919,176.7,176.68,11.06744219]
[1730108087138,0.12549,176.7,176.68,11.06744219]
[1730108087628,20.12549,176.7,176.67,11.06744219]
[1730108087838,0.12549,176.68,176.67,11.06744219]
[1730108088315,0.37647,176.69,176.67,11.06744219]
[1730108088515,0.37647,176.69,176.66,11.06744219]
[1730108089432,0.12549,176.67,176.65,11.06744219]
[1730108090212,0.12549,176.67,176.64,16.72854219]
[1730108091033,30.12549,176.67,176.64,16.72854219]
[1730108093031,0.12549,176.67,176.66,11.06744219]
[1730108095151,0.12549,176.67,176.65,11.06744219]
[1730108097241,0.12549,176.67,176.64,11.06744219]
[1730108098346,0.12549,176.67,176.64,16.72854219]
[1730108099822,0.12549,176.67,176.64,16.72854219]
[1730108100020,0.12549,176.67,176.65,11.06744219]
[1730108100222,20.25098,176.69,176.65,11.06744219]
[1730108100457,0.12549,176.67,176.65,11.06744219]
[1730108101134,0.12549,176.68,176.65,16.72814219]
[1730108103829,70.0,176.73,176.67,11.06744219]
[1730108104035,4.24535186,176.72,176.7,11.06744219]
[1730108104224,34.24535186,176.71,176.67,44.26976876]
[1730108104425,30.0,176.71,176.67,44.26976876]
[1730108104824,30.0,176.71,176.65,36.2249]
[1730108105026,30.0,176.71,176.7,11.06744219]
[1730108105436,30.0,176.71,176.69,11.06744219]
[1730108105642,16.72554219,176.74,176.69,11.06744219]
[1730108105846,0.12549,176.72,176.69,16.72674219]
[1730108106226,0.12549,176.72,176.69,11.06744219]
[1730108106429,0.12549,176.72,176.68,30.87674219]
[1730108106939,0.12549,176.72,176.69,11.06744219]
[1730108109450,0.12549,176.72,176.7,11.06744219]
[1730108109833,20.0,176.75,176.71,11.06744219]
[1730108110047,4.24221036,176.74,176.72,11.06744219]
[1730108110252,20.0,176.75,176.73,11.06744219]
[1730108110454,4.36734036,176.74,176.73,11.06744219]
[1730108116356,4.24185036,176.74,176.73,16.72574219]
[1730108116659,70.0,176.8,176.73,30.87154219]
[1730108116849,4.36436379,176.79,176.78,11.06744219]
[1730108117560,24.61534379,176.79,176.78,11.06744219]
[1730108118240,4.36436379,176.79,176.74,19.8027]
[1730108118440,4.23887379,176.78,176.77,11.06744219]
[1730108118658,4.36436379,176.78,176.77,11.06744219]
[1730108120054,4.36436379,176.78,176.77,16.72444219]
[1730108120438,4.23887379,176.78,176.77,16.72444219]
[1730108120638,5.6548,176.84,176.77,30.86704219]
[1730108120854,4.35895604,176.83,176.82,11.06744219]
[1730108121050,4.35895604,176.83,176.81,11.06744219]
[1730108121258,0.12549,176.83,176.81,11.06744219]
[1730108121442,4.35768322,176.82,176.81,11.06744219]
[1730108121637,0.12549,176.81,176.78,5.6566]
[1730108121842,0.12549,176.79,176.78,11.06744219]
[1730108122052,4.35768322,176.79,176.78,11.06744219]
[1730108123140,0.12549,176.81,176.78,11.06744219]
[1730108123341,0.12549,176.81,176.8,11.06744219]
[1730108123545,4.35548032,176.81,176.8,11.06744219]
[1730108125035,0.12549,176.81,176.8,11.06744219]
[1730108125239,4.35446823,176.81,176.8,11.06744219]
[1730108126263,4.35446823,176.81,176.8,16.72354219]
[1730108126563,0.12549,176.83,176.8,30.86374219]
[1730108126862,0.12549,176.83,176.82,11.06744219]
[1730108127058,4.35214705,176.83,176.82,11.06744219]
[1730108128265,0.12549,176.85,176.82,11.06744219]
[1730108128466,0.12549,176.83,176.76,59.73786876]
[1730108128651,0.12549,176.83,176.82,11.06744219]
[1730108129165,0.12549,176.84,176.82,11.06744219]
[1730108129359,0.12549,176.84,176.83,11.06744219]
[1730108129556,4.34811826,176.84,176.83,11.06744219]
[1730108130354,99.681364,176.88,176.83,11.06744219]
[1730108130556,5.90518,176.86,176.84,11.06744219]
[1730108130755,4.34689016,176.85,176.84,11.06744219]
[1730108131152,0.12549,176.85,176.84,11.06744219]
[1730108131868,0.12549,176.84,176.83,11.06744219]
[1730108132448,0.12549,176.85,176.83,11.06744219]
[1730108137158,25.6538,176.88,176.84,11.06744219]
[1730108137564,0.12549,176.87,176.85,11.06744219]
[1730108137850,20.0,176.91,176.86,11.06744219]
[1730108138065,31.19293219,176.89,176.79,20.0]
[1730108138269,0.12549,176.87,176.79,20.0]
[1730108138571,0.12549,176.87,176.83,11.06744219]
[1730108138756,0.12549,176.87,176.78,19.7985]
[1730108138960,0.12549,176.85,176.82,11.06744219]
[1730108139869,0.12549,176.85,176.78,19.7985]
[1730108139870,0.12549,176.85,176.81,11.06744219]
[1730108144181,0.12549,176.84,176.81,16.72314219]
[1730108144680,0.12549,176.82,176.76,21.0254]
[1730108144982,0.12549,176.82,176.78,16.72394219]
[1730108145681,0.12549,176.82,176.79,11.06744219]
[1730108145879,25.78029,176.84,176.8,11.06744219]
[1730108147177,36.84773219,176.84,176.79,11.06744219]
[1730108149079,36.84773219,176.84,176.79,16.72364219]
[1730108149882,16.84773219,176.84,176.79,16.72364219]
[1730108150179,5.78029,176.84,176.79,30.86464219]
[1730108150379,0.12549,176.82,176.79,19.7972]
[1730108151367,0.12549,176.82,176.77,11.06744219]
[1730108151368,0.12549,176.81,176.77,16.72414219]
[1730108152362,0.12549,176.81,176.77,11.06744219]
[1730108153462,0.12549,176.81,176.78,5.6567]
[1730108153663,11.06744219,176.82,176.78,5.6567]
[1730108153872,0.12549,176.81,176.78,5.6567]
[1730108154991,0.12549,176.8,176.78,5.6567]
[1730108158688,0.12549,176.8,176.76,11.06744219]
[1730108158890,11.19293219,176.82,176.77,11.06744219]
[1730108160174,11.19293219,176.82,176.78,5.6567]
[1730108162970,20.0,176.84,176.79,11.06744219]
[1730108163173,31.06744219,176.84,176.79,11.06744219]
[1730108164780,31.06744219,176.84,176.8,5.6561]
[1730108164983,11.19293219,176.83,176.79,5.6563]
[1730108166191,11.19293219,176.83,176.79,19.7973]
[1730108166967,0.12549,176.83,176.8,11.06744219]
[1730108167163,36.72154219,176.86,176.81,11.06744219]
[1730108167378,16.72154219,176.86,176.81,11.06744219]
[1730108167976,0.12549,176.85,176.81,11.06744219]
[1730108168494,0.12549,176.85,176.81,16.72294219]
[1730108169174,0.12549,176.85,176.81,19.7949]
[1730108169376,11.19293219,176.85,176.81,19.7949]
[1730108170396,6.4636,176.88,176.83,11.06744219]
[1730108170596,4.23260355,176.87,176.86,11.06744219]
[1730108170908,30.0,176.87,176.86,11.06744219]
[1730108171891,30.0,176.87,176.86,11.0273206]
[1730108172272,0.12549,176.86,176.85,5.6542]
[1730108172701,0.12549,176.86,176.84,14.1364]
[1730108175298,0.12549,176.87,176.84,14.1364]
[1730108177298,11.19293219,176.87,176.82,11.06744219]
[1730108177506,41.19293219,176.87,176.82,11.06744219]
[1730108177810,30.12549,176.87,176.82,11.06744219]
[1730108177983,30.12549,176.87,176.83,11.06744219]
[1730108178606,30.12549,176.87,176.83,16.72244219]
[1730108179387,46.84703219,176.87,176.79,5.6564]
[1730108179583,46.84703219,176.87,176.82,11.06744219]
[1730108179787,11.19293219,176.85,176.79,19.7972]
[1730108179995,0.12549,176.84,176.8,11.06744219]
[1730108180575,0.12549,176.84,176.81,5.6557]
[1730108181899,11.19293219,176.84,176.81,5.6557]
[1730108182604,11.19293219,176.84,176.79,25.20824219]
[1730108182787,16.84793219,176.84,176.79,19.7971]
[1730108184897,30.0,176.83,176.79,19.7971]
[1730108185100,0.12549,176.82,176.79,19.7971]
[1730108185903,16.84863219,176.82,176.77,11.06744219]
[1730108186801,16.84863219,176.82,176.78,5.6567]
[1730108187005,5.78119,176.82,176.78,5.6567]
[1730108188409,0.12549,176.82,176.78,5.6567]
[1730108190092,30.12549,176.82,176.78,5.6567]
[1730108190700,41.19293219,176.82,176.78,5.6567]
[1730108194616,11.19293219,176.82,176.78,5.6567]
[1730108200143,16.84843219,176.82,176.78,5.6567]
[1730108201637,11.06744219,176.8,176.75,5.6577]
[1730108201932,11.06744219,176.8,176.71,0.1]
[1730108201933,0.12549,176.75,176.71,14.147]
[1730108202122,11.19293219,176.75,176.71,14.147]
[1730108203135,11.19293219,176.75,176.71,19.8059]
[1730108205736,11.19293219,176.75,176.71,25.21444219]
[1730108206847,11.19293219,176.76,176.71,30.87334219]
[1730108209642,0.12549,176.76,176.72,11.06744219]
[1730108211226,0.12549,176.76,176.73,5.6583]
[1730108211942,11.06744219,176.78,176.74,11.06744219]
[1730108211943,20.0,176.78,176.74,11.06744219]
[1730108212858,20.0,176.78,176.75,5.6577]
[1730108213049,0.12549,176.77,176.74,16.72514219]
[1730108213344,0.12549,176.77,176.74,5.6577]
[1730108214452,16.85003219,176.77,176.73,19.8041]
[1730108216125,11.19293219,176.77,176.73,19.8041]
[1730108216543,0.12549,176.77,176.73,19.8041]
[1730108218827,0.12549,176.77,176.73,11.06744219]
[1730108220048,0.12549,176.77,176.73,16.72554219]
[1730108220641,0.12549,176.77,176.73,30.87134219]
[1730108220854,0.12549,176.78,176.73,19.8039]
[1730108221030,61.19293219,176.78,176.73,19.8039]
[1730108221357,61.19293219,176.78,176.73,30.87134219]
[1730108222454,55.78219,176.78,176.73,19.8039]
[1730108222629,0.12549,176.76,176.73,14.1458]
[1730108223935,30.12549,176.76,176.73,14.1458]
[1730108224247,30.12549,176.76,176.66,0.1]
[1730108224248,0.12549,176.73,176.69,11.06744219]
[1730108224557,0.12549,176.73,176.7,5.6593]
[1730108226770,0.12549,176.73,176.69,19.8082]
[1730108227761,30.12549,176.73,176.69,30.87564219]
[1730108228561,30.12549,176.73,176.7,11.06744219]